bitfinex/quotes_BTCUSD_20250226
["timestamp","ask_amount","ask_price","bid_price","bid_amount"]
[1740592762299,0.02538247,86229.0,86218.0,0.01236]
[1740592762708,0.1212,86228.0,86215.0,0.01232]
[1740592763540,0.19025858,86237.0,86215.0,0.01232]
[1740592763748,0.19025858,86237.0,86216.0,0.00162337]
[1740592764090,0.0451,86243.0,86217.0,0.32203731]
[1740592764297,0.0451,86243.0,86215.0,0.03232]
[1740592764298,0.0799,86252.0,86224.0,0.04]
[1740592764498,0.0466,86259.0,86226.0,0.3]
[1740592764674,0.0466,86259.0,86228.0,0.3]
[1740592764877,0.0466,86259.0,86230.0,0.3]
[1740592765092,0.0466,86259.0,86231.0,0.00162299]
[1740592765296,0.0466,86259.0,86232.0,0.3636344]
[1740592765583,0.0466,86259.0,86233.0,0.00162296]
[1740592765940,0.0466,86259.0,86233.0,0.32366027]
[1740592766138,0.0466,86259.0,86233.0,0.32203731]
[1740592767172,0.0466,86259.0,86234.0,0.01386296]
[1740592767411,0.00054729,86246.0,86234.0,0.01386296]
[1740592767612,0.00054729,86246.0,86234.0,0.07745299]
[1740592768165,0.00054729,86246.0,86234.0,0.3994903]
[1740592768390,0.00054729,86246.0,86234.0,0.39786734]
[1740592768716,0.00054729,86246.0,86235.0,0.00162287]
[1740592768938,0.00054729,86246.0,86237.0,0.3]
[1740592769141,0.00054729,86246.0,86238.0,0.00162289]
[1740592769912,0.00054729,86246.0,86239.0,0.32203731]
[1740592770119,0.00054729,86246.0,86240.0,0.30162292]
[1740592770323,0.00054729,86246.0,86240.0,0.3]
[1740592770648,0.00054729,86246.0,86241.0,0.06359003]
[1740592770852,0.00054729,86246.0,86241.0,0.32203731]
[1740592770982,0.00054729,86246.0,86242.0,0.01216]
[1740592772394,0.00054729,86246.0,86241.0,0.31886624]
[1740592772747,0.00054729,86246.0,86242.0,0.0122]
[1740592772953,0.00054729,86246.0,86241.0,0.31886624]
[1740592773194,0.00054729,86246.0,86243.0,0.0122]
[1740592773367,0.00054729,86246.0,86244.0,0.00162285]
[1740592773547,0.00054729,86246.0,86243.0,0.0122]
[1740592773779,0.00054729,86246.0,86243.0,0.00780675]
[1740592774346,0.00054729,86246.0,86244.0,0.30162296]
[1740592774531,0.00054729,86246.0,86245.0,0.06645247]
[1740592775292,0.00054729,86246.0,86245.0,0.68531871]
[1740592775496,0.00054729,86246.0,86245.0,0.71569584]
[1740592775654,0.00054729,86246.0,86245.0,1.26349584]
[1740592777557,0.09203436,86258.0,86257.0,0.04]
[1740592777722,0.09244657,86258.0,86257.0,1.25808849]
[1740592777957,0.09244657,86258.0,86257.0,1.25646624]
[1740592778159,0.09244657,86258.0,86257.0,1.21646624]
[1740592778384,0.09244657,86258.0,86257.0,1.26858624]
[1740592778542,0.09244657,86258.0,86257.0,1.17878624]
[1740592778908,0.09244657,86258.0,86257.0,0.63098624]
[1740592779187,0.09244657,86258.0,86257.0,0.31886624]
[1740592779344,0.09244657,86258.0,86257.0,0.33598624]
[1740592780867,0.00041221,86258.0,86257.0,0.33598624]
[1740592781070,0.00041221,86258.0,86257.0,0.69158486]
[1740592781297,0.00041221,86258.0,86257.0,0.68658486]
[1740592781495,0.00041221,86258.0,86257.0,1.25438486]
[1740592782018,0.0559372,86316.0,86266.0,0.02]
[1740592782172,0.00012359,86277.0,86268.0,0.3]
[1740592782374,0.00012359,86277.0,86270.0,0.3]
[1740592782609,0.00012359,86277.0,86271.0,0.32048838]
[1740592782804,0.00012359,86277.0,86271.0,0.31886624]
[1740592782977,0.00012359,86277.0,86272.0,0.00162214]
[1740592783181,0.00012359,86277.0,86274.0,0.3]
[1740592783409,0.00012359,86277.0,86276.0,0.34]
[1740592783565,0.00012359,86277.0,86276.0,1.20620709]
[1740592783966,0.00012359,86277.0,86276.0,1.33170709]
[1740592784189,0.00012359,86277.0,86276.0,1.31716624]
[1740592784446,0.00512359,86277.0,86276.0,1.36484486]
[1740592784589,0.00512359,86277.0,86276.0,1.37938571]
[1740592785047,0.00012359,86277.0,86276.0,1.37938571]
[1740592785224,0.00012359,86277.0,86276.0,1.36638571]
[1740592785428,0.00012359,86277.0,86276.0,1.38638571]
[1740592785586,0.00012359,86277.0,86276.0,1.33976486]
[1740592785786,0.00012359,86277.0,86276.0,1.36484486]
[1740592785988,0.00012359,86277.0,86276.0,1.27444486]
[1740592786423,0.00012359,86277.0,86276.0,0.85766624]
[1740592786622,0.00012359,86277.0,86276.0,0.01808]
[1740592786824,0.00012359,86277.0,86276.0,0.01970207]
[1740592787428,0.00012359,86277.0,86276.0,0.01370207]
[1740592787633,0.00012359,86277.0,86276.0,0.02070207]
[1740592788276,0.04545359,86303.0,86276.0,0.01370207]
[1740592788476,0.04557716,86303.0,86276.0,0.01208]
[1740592788674,0.04557716,86303.0,86277.0,0.00162219]
[1740592789226,0.01274772,86302.0,86270.0,0.0016221]
[1740592789474,0.001,86320.0,86276.0,4e-05]
[1740592789646,5.05,86319.0,86276.0,0.00166226]
[1740592789850,0.001,86318.0,86276.0,0.00166226]
[1740592790065,5.05,86317.0,86276.0,0.00166226]
[1740592790289,0.001,86316.0,86276.0,0.00166226]
[1740592790487,0.006,86303.0,86276.0,0.00266226]
[1740592790712,0.0064235,86303.0,86273.0,0.3]
[1740592790884,0.0064235,86303.0,86276.0,0.00143339]
[1740592791101,0.0004235,86303.0,86276.0,0.00143339]
[1740592791511,0.0004235,86303.0,86276.0,0.00243339]
[1740592791915,0.0004235,86303.0,86276.0,0.00143339]
[1740592792116,0.0004235,86303.0,86274.0,0.00143332]
[1740592792294,0.0064235,86303.0,86276.0,0.001]
[1740592792508,0.0064235,86303.0,86277.0,0.00143332]
[1740592793704,0.0004235,86303.0,86277.0,0.00143332]
[1740592793860,0.0004235,86303.0,86278.0,0.00143332]
[1740592793861,0.0074235,86303.0,86278.0,0.00143332]
[1740592794222,0.0004235,86303.0,86278.0,0.00143332]
[1740592794630,0.0004235,86303.0,86279.0,0.03014733]
[1740592794631,0.0074235,86303.0,86279.0,0.03014733]
[1740592794855,0.0074235,86303.0,86280.0,0.30143293]
[1740592795033,0.0074235,86303.0,86280.0,0.60386624]
[1740592795255,0.0004235,86303.0,86280.0,0.60386624]
[1740592795458,0.0074235,86303.0,86281.0,0.0292383]
[1740592795630,0.0074235,86303.0,86282.0,0.30143278]
[1740592795829,0.0074235,86303.0,86283.0,0.00143278]
[1740592796039,0.0074235,86303.0,86285.0,0.02]
[1740592796244,0.0074235,86303.0,86287.0,0.3]
[1740592796475,0.0074235,86303.0,86288.0,0.07947932]
[1740592796883,0.0004235,86303.0,86293.0,0.09283489]
[1740592797109,0.0004235,86303.0,86294.0,0.00143193]
[1740592797335,0.0064235,86303.0,86296.0,0.3]
[1740592797535,0.0064235,86303.0,86297.0,0.03067035]
[1740592797716,0.0004235,86303.0,86298.0,0.3]
[1740592797914,0.0004235,86303.0,86300.0,0.3]
[1740592798203,0.0064235,86303.0,86302.0,0.3]
[1740592798411,0.0064235,86303.0,86302.0,0.60386624]
[1740592798603,0.0004235,86303.0,86302.0,0.63401357]
[1740592798921,0.0024235,86303.0,86302.0,0.63401357]
[1740592799530,0.00291168,86323.0,86302.0,0.63401357]
[1740592799763,0.00291168,86323.0,86303.0,0.0014315]
[1740592799991,0.00291168,86323.0,86304.0,0.0792]
[1740592800187,0.00291168,86323.0,86305.0,0.33066983]
[1740592800418,0.00291168,86323.0,86289.0,0.30386624]
[1740592800600,0.31454085,86321.0,86288.0,0.00012357]
[1740592800905,0.31454085,86319.0,86288.0,0.00012357]
[1740592801076,0.0499,86322.0,86288.0,0.00012357]
[1740592801077,0.0499,86322.0,86289.0,0.00143299]
[1740592801241,0.00291168,86318.0,86289.0,0.00143299]
[1740592801482,0.00291168,86318.0,86290.0,0.0456]
[1740592801702,0.00291168,86318.0,86290.0,0.01204]
[1740592801924,0.5343,86317.0,86290.0,0.01347289]
[1740592802150,0.03684713,86321.0,86290.0,0.01347289]
[1740592802377,0.00291168,86316.0,86290.0,0.01347246]
[1740592802850,0.00291168,86316.0,86294.0,0.3685]
[1740592803082,0.007,86321.0,86302.0,0.09283489]
[1740592803312,0.0004233,86323.0,86311.0,0.09283489]
[1740592803515,0.007,86318.0,86312.0,0.30928349]
[1740592803737,0.007,86318.0,86314.0,0.047]
[1740592803943,0.00307611,86333.0,86317.0,0.02]
[1740592804140,0.00485,86385.0,86315.0,0.02]
[1740592804141,0.10069383,86328.0,86320.0,0.39283489]
[1740592804533,0.10069383,86328.0,86320.0,0.44737574]
[1740592804534,0.00556874,86321.0,86320.0,0.44737574]
[1740592804760,0.10069383,86328.0,86326.0,0.02]
[1740592804994,0.10069383,86328.0,86327.0,0.4176]
[1740592805254,0.0413082,86328.0,86327.0,0.4176]
[1740592805450,0.006,86333.0,86332.0,0.4224]
[1740592805712,0.00612354,86333.0,86332.0,0.68332]
[1740592805947,0.00485,86385.0,86345.0,0.4006]
[1740592806181,0.00485,86385.0,86346.0,0.05984]
[1740592806394,0.00526198,86372.0,86346.0,0.3478]
[1740592806607,0.00526198,86372.0,86347.0,0.01204]
[1740592806720,0.00526198,86372.0,86346.0,0.3478]
[1740592806924,0.00526198,86372.0,86347.0,0.38888142]
[1740592807176,0.00526198,86372.0,86351.0,0.0182]
[1740592807371,0.00526198,86372.0,86352.0,0.012]
[1740592807578,0.00526198,86372.0,86353.0,0.012]
[1740592807839,0.00526198,86372.0,86348.0,0.3]
[1740592808060,0.86676198,86372.0,86349.0,0.012]
[1740592808502,0.86676198,86372.0,86352.0,4e-05]
[1740592808738,0.8666641,86372.0,86359.0,0.3]
[1740592808981,0.8666641,86372.0,86360.0,0.0182]
[1740592809219,0.8666641,86372.0,86360.0,0.012]
[1740592809456,0.8666641,86372.0,86359.0,0.3]
[1740592809699,0.8666641,86372.0,86361.0,0.012]
[1740592809908,0.8666641,86372.0,86354.0,0.0182]
[1740592810109,0.8666641,86372.0,86352.0,4e-05]
[1740592810110,0.8666641,86372.0,86359.0,0.0182]
[1740592810311,0.8666641,86372.0,86371.0,0.3]
[1740592811616,0.8666641,86372.0,86360.0,4e-05]
[1740592811818,0.86761629,86372.0,86361.0,0.01208]
[1740592812041,0.86722961,86372.0,86361.0,0.01208]
[1740592812417,0.8666641,86372.0,86367.0,0.0108]
[1740592812800,0.8666641,86372.0,86371.0,4e-05]
[1740592813423,0.8666641,86372.0,86371.0,0.08264]
[1740592813625,0.77448131,86372.0,86371.0,0.39344]
[1740592813869,0.77448131,86372.0,86371.0,0.45276]
[1740592814071,0.77448131,86372.0,86371.0,0.42984]
[1740592814246,0.77490451,86372.0,86371.0,0.44196]
[1740592814649,0.77490451,86372.0,86371.0,0.44896]
[1740592814830,0.77490451,86372.0,86371.0,0.01916]
[1740592815722,0.77490451,86372.0,86371.0,0.01216]
[1740592815927,0.77490451,86372.0,86371.0,0.02296]
[1740592816156,0.77490451,86372.0,86371.0,0.02808]
[1740592816357,0.77490451,86372.0,86371.0,0.46144]
[1740592816572,0.64680451,86372.0,86371.0,0.47098085]
[1740592816795,0.51870451,86372.0,86371.0,0.47098085]
[1740592817012,0.51870451,86372.0,86371.0,0.49022085]
[1740592817223,0.39060451,86372.0,86371.0,0.52599757]
[1740592817454,0.34440451,86372.0,86371.0,0.44885757]
[1740592817664,0.34956879,86372.0,86371.0,0.47889757]
[1740592818099,0.34915879,86372.0,86371.0,0.47889757]
[1740592818719,0.00558748,86372.0,86371.0,0.47889757]
[1740592818937,0.00558748,86372.0,86371.0,0.47189757]
[1740592819193,0.0004232,86372.0,86371.0,0.42528085]
[1740592819414,0.0004232,86372.0,86371.0,0.13088085]
[1740592819626,0.0004232,86372.0,86371.0,0.29676]
[1740592819830,0.0004232,86372.0,86371.0,0.30196]
[1740592820035,0.0004232,86372.0,86371.0,0.30896]
[1740592820241,0.0004232,86372.0,86371.0,0.29676]
[1740592820502,0.0004232,86372.0,86371.0,0.32350085]
[1740592820717,0.0004232,86372.0,86371.0,0.31130085]
[1740592820946,0.0004232,86372.0,86371.0,0.32350085]
[1740592821177,0.0004232,86372.0,86371.0,0.27530085]
[1740592821389,0.0004232,86372.0,86371.0,0.27896]
[1740592821639,0.0004232,86372.0,86371.0,0.273]
[1740592821899,0.0004232,86372.0,86371.0,0.2838]
[1740592822132,0.0004232,86372.0,86371.0,0.2716]
[1740592822348,0.0004232,86372.0,86371.0,0.28384]
[1740592822577,0.0004232,86372.0,86371.0,0.29084]
[1740592822806,0.0004232,86372.0,86371.0,0.30538085]
[1740592823054,0.0004232,86372.0,86371.0,0.30434085]
[1740592823315,0.00485,86385.0,86384.0,0.04354085]
[1740592823710,0.00497349,86385.0,86384.0,0.05578085]
[1740592824241,0.047,86431.0,86384.0,0.05578085]
[1740592824242,0.02,86436.0,86386.0,0.08902315]
[1740592824452,0.00012344,86423.0,86387.0,0.00161946]
[1740592824656,0.00012344,86423.0,86391.0,0.005]
[1740592824867,0.00012344,86423.0,86392.0,0.00161948]
[1740592825509,0.00012344,86423.0,86393.0,0.0122]
[1740592825510,0.02,86422.0,86393.0,0.0122]
[1740592825736,0.02,86422.0,86391.0,0.005]
[1740592825737,0.02,86419.0,86394.0,0.2744598]
[1740592825940,0.02,86419.0,86395.0,0.00161984]
[1740592826149,0.00139452,86418.0,86395.0,0.00161984]
[1740592826554,0.02,86405.0,86396.0,0.0122]
[1740592826758,0.00139452,86418.0,86397.0,0.00162005]
[1740592826964,0.00139452,86418.0,86398.0,0.0122]
[1740592827168,0.1242,86417.0,86399.0,0.0016198]
[1740592827344,0.3,86416.0,86399.0,0.0016198]
[1740592827546,0.30684753,86416.0,86400.0,0.0122]
[1740592827752,0.30684753,86416.0,86401.0,0.00161989]
[1740592827927,0.00684753,86416.0,86401.0,0.00161989]
[1740592828124,0.00684753,86416.0,86401.0,0.00161988]
[1740592828125,0.00545301,86416.0,86401.0,0.00161988]
[1740592828334,0.0475,86417.0,86402.0,0.01216]
[1740592828646,0.0475,86417.0,86403.0,0.00161971]
[1740592829237,0.00257488,86416.0,86403.0,0.00161971]
[1740592829652,0.00012344,86423.0,86404.0,0.01216]
[1740592829817,0.00012344,86423.0,86405.0,0.00161961]
[1740592830231,0.00257488,86422.0,86405.0,0.00161961]
[1740592830880,0.00257488,86422.0,86406.0,0.01216]
[1740592831208,0.00257488,86422.0,86407.0,0.00161965]
[1740592831388,0.00257488,86422.0,86407.0,0.01377965]
[1740592831588,0.00257488,86422.0,86408.0,0.01216]
[1740592831824,0.00257488,86422.0,86409.0,0.00161965]
[1740592832023,0.00257488,86422.0,86410.0,0.01212]
[1740592832226,0.00257488,86422.0,86411.0,0.00161965]
[1740592833226,0.00215488,86422.0,86411.0,0.00161965]
[1740592833637,0.00215488,86422.0,86411.0,0.00161971]
[1740592833998,0.00215488,86422.0,86412.0,0.01212]
[1740592834212,0.00248477,86422.0,86413.0,0.00161971]
[1740592834581,0.00248477,86422.0,86414.0,0.0016197]
[1740592834789,0.00012344,86423.0,86414.0,0.0016197]
[1740592835373,0.00012344,86423.0,86414.0,0.29522423]
[1740592835568,0.00012344,86423.0,86415.0,0.09262315]
[1740592835773,0.00012344,86423.0,86416.0,0.05038134]
[1740592835930,0.00012344,86423.0,86417.0,0.03584049]
[1740592836139,0.00012344,86423.0,86419.0,0.01454085]
[1740592836334,0.00012344,86423.0,86420.0,0.03584049]
[1740592836544,0.00012344,86423.0,86421.0,0.04792049]
[1740592836765,0.00012344,86423.0,86414.0,4e-05]
[1740592836987,0.00012344,86423.0,86422.0,0.01208]
[1740592838403,0.00012344,86423.0,86421.0,4e-05]
[1740592838614,0.02012344,86423.0,86422.0,0.01204]
[1740592838831,0.00012344,86423.0,86422.0,0.01204]
[1740592839673,0.00012344,86423.0,86422.0,0.04804777]
[1740592840599,0.00012344,86423.0,86422.0,0.05104777]
[1740592840986,0.00012344,86423.0,86422.0,0.06558862]
[1740592841208,0.04427334,86456.0,86423.0,0.01454085]
[1740592841418,0.04439674,86456.0,86429.0,0.09262315]
[1740592841641,0.04439674,86456.0,86430.0,0.33600777]
[1740592841851,0.04439674,86456.0,86431.0,0.03600777]
[1740592842049,0.04439674,86456.0,86430.0,0.3]
[1740592842050,0.0001234,86456.0,86432.0,0.03600777]
[1740592842414,0.0001234,86456.0,86438.0,0.09262315]
[1740592842571,0.02,86478.0,86438.0,0.09262315]
[1740592842572,0.05816594,86524.0,86474.0,0.02]
[1740592842772,0.00041124,86487.0,86475.0,0.012]
[1740592843366,0.00041124,86487.0,86484.0,0.02]
[1740592843582,0.00041124,86487.0,86486.0,0.02]
[1740592844618,0.00041124,86487.0,86486.0,0.02004]
[1740592845893,0.00041124,86487.0,86486.0,0.02165801]
[1740592846106,0.00041124,86487.0,86486.0,0.06058218]
[1740592846316,0.00041124,86487.0,86486.0,0.09262218]
[1740592846525,0.00041124,86487.0,86486.0,0.08962218]
[1740592846728,0.00041124,86487.0,86486.0,0.47980218]
[1740592846941,0.00041124,86487.0,86486.0,0.47818417]
[1740592847354,0.00041124,86487.0,86486.0,0.46606417]
[1740592847559,0.00041124,86487.0,86486.0,0.47818417]
[1740592848186,1.24e-06,86487.0,86486.0,0.48572502]
[1740592848386,1.24e-06,86487.0,86486.0,0.49272502]
[1740592848588,1.24e-06,86487.0,86486.0,0.47818417]
[1740592848797,1.24e-06,86487.0,86486.0,0.47118417]
[1740592849009,1.24e-06,86487.0,86486.0,0.36808417]
[1740592849209,1.24e-06,86487.0,86486.0,0.37508417]
[1740592849390,1.24e-06,86487.0,86486.0,0.07508417]
[1740592849649,1.24e-06,86487.0,86486.0,0.06808417]
[1740592849860,0.3,86522.0,86486.0,0.03916]
[1740592850029,0.0126902,86511.0,86487.0,0.00161804]
[1740592850455,0.005214,86510.0,86487.0,0.00161804]
[1740592850674,0.045,86509.0,86491.0,0.02]
[1740592850881,0.045,86509.0,86486.0,0.0199642]
[1740592850882,0.045,86507.0,86486.0,0.0199642]
[1740592851089,0.08971502,86508.0,86486.0,0.0129642]
[1740592851090,0.005206,86508.0,86486.0,0.0129642]
[1740592851294,0.00519339,86506.0,86486.0,0.0129642]
[1740592851504,0.0004221,86524.0,86492.0,0.02]
[1740592851714,0.0004221,86524.0,86486.0,0.0199642]
[1740592851715,0.0004221,86524.0,86498.0,0.02]
[1740592851927,0.0004221,86524.0,86499.0,0.0216182]
[1740592852139,0.01454085,86564.0,86499.0,0.0216182]
[1740592852353,4.495781,86563.0,86509.0,0.02]
[1740592852556,4.495781,86563.0,86510.0,0.00161798]
[1740592852980,0.00520002,86521.0,86510.0,0.00161798]
[1740592853392,0.00520002,86521.0,86517.0,0.02]
[1740592853614,0.00520002,86521.0,86518.0,0.01212]
[1740592854162,0.00520002,86521.0,86520.0,0.02]
[1740592854979,0.00520002,86521.0,86520.0,0.03216]
[1740592855178,0.00520002,86521.0,86520.0,0.03377745]
[1740592855610,0.00520002,86521.0,86520.0,0.59417745]
[1740592855821,0.00520002,86521.0,86520.0,0.59256]
[1740592856203,0.00520002,86521.0,86520.0,0.59856]
[1740592857857,0.00520002,86521.0,86520.0,0.59256]
[1740592858069,0.00520002,86521.0,86520.0,0.59264]
[1740592858269,0.00520002,86521.0,86520.0,0.59864]
[1740592858649,0.00520002,86521.0,86520.0,0.59264]
[1740592858978,0.00520002,86521.0,86520.0,0.57264]
[1740592859254,0.00520002,86521.0,86520.0,0.59964]
[1740592859476,0.00520002,86521.0,86520.0,0.59264]
[1740592859936,0.01454085,86564.0,86521.0,0.3]
[1740592860151,0.01454085,86562.0,86541.0,0.02]
[1740592860339,0.01454085,86562.0,86547.0,0.02]
[1740592860545,4.495781,86561.0,86522.0,0.00161725]
[1740592860668,0.0464,86558.0,86524.0,0.01228]
[1740592860864,0.0488,86555.0,86525.0,0.00161783]
[1740592861069,0.0488,86555.0,86526.0,0.03232]
[1740592861316,0.0488,86555.0,86539.0,0.02]
[1740592861524,0.0488,86555.0,86542.0,0.02]
[1740592861780,0.0488,86571.0,86553.0,0.0198]
[1740592861964,0.0488,86571.0,86554.0,0.01393709]
[1740592862239,0.0488,86571.0,86555.0,0.0198]
[1740592862448,0.0488,86571.0,86556.0,0.00161707]
[1740592862676,0.0004221,86559.0,86526.0,0.00161711]
[1740592862896,0.0004221,86559.0,86527.0,0.01236]
[1740592863135,0.0004221,86559.0,86500.0,0.3273]
[1740592863136,0.09604085,86557.0,86528.0,0.01236]
[1740592863362,0.3,86555.0,86527.0,0.01236]
[1740592863579,0.3,86553.0,86527.0,0.01236]
[1740592863838,0.3,86551.0,86527.0,0.01236]
[1740592864067,0.3,86549.0,86527.0,0.01236]
[1740592864286,0.1367,86548.0,86527.0,0.01236]
[1740592864500,0.0474,86554.0,86527.0,0.0337776]
[1740592865163,0.0474,86554.0,86520.0,4e-05]
[1740592865380,4.51032185,86553.0,86528.0,0.0124]
[1740592865608,0.01454085,86551.0,86527.0,0.001]
[1740592865826,0.31454085,86549.0,86527.0,4e-05]
[1740592866047,0.31454085,86547.0,86527.0,4e-05]
[1740592866244,0.31454085,86545.0,86527.0,0.00104]
[1740592866369,0.31454085,86543.0,86527.0,0.00104]
[1740592866611,0.01454085,86540.0,86527.0,0.00104]
[1740592867284,0.01454085,86540.0,86527.0,4e-05]
[1740592867897,0.01454085,86540.0,86527.0,8e-05]
[1740592868104,0.01454085,86538.0,86527.0,8e-05]
[1740592868349,0.01454085,86535.0,86527.0,8e-05]
[1740592868565,4.541381,86537.0,86527.0,8e-05]
[1740592868566,0.01454085,86531.0,86527.0,8e-05]
[1740592868770,0.01454085,86529.0,86520.0,4e-05]
[1740592868974,4.495781,86528.0,86520.0,4e-05]
[1740592869180,0.01454085,86529.0,86520.0,4e-05]
[1740592869181,0.3,86527.0,86520.0,4e-05]
[1740592869385,0.31454085,86525.0,86520.0,4e-05]
[1740592869587,0.01454085,86525.0,86520.0,4e-05]
[1740592869790,0.31454085,86523.0,86520.0,4e-05]
[1740592869995,0.0486,86522.0,86520.0,4e-05]
[1740592870483,0.01454085,86521.0,86516.0,0.01236]
[1740592870740,0.01454085,86519.0,86516.0,0.01236]
[1740592871223,0.01454085,86521.0,86516.0,0.01236]
[1740592871895,0.01454085,86521.0,86516.0,0.0124]
[1740592872312,0.31454085,86519.0,86516.0,4e-05]
[1740592872511,0.01454085,86518.0,86516.0,4e-05]
[1740592872915,0.01454085,86518.0,86511.0,0.01228]
[1740592873116,0.01454085,86518.0,86511.0,0.01240339]
[1740592873344,0.0556,86522.0,86511.0,0.01240339]
[1740592874347,0.01454085,86521.0,86516.0,0.000844]
[1740592874556,0.01454085,86519.0,86516.0,0.000844]
[1740592874770,0.01454085,86517.0,86516.0,0.000844]
[1740592874972,5.13882185,86517.0,86516.0,0.000844]
[1740592875178,0.0002,86514.0,86503.0,0.26028]
[1740592875379,0.0002,86507.0,86486.0,0.0008842]
[1740592875629,0.31454085,86505.0,86486.0,0.0008842]
[1740592875877,0.0002,86502.0,86486.0,0.0131642]
[1740592876076,0.0002,86495.0,86486.0,0.0131642]
[1740592876296,0.0002,86491.0,86486.0,0.0131642]
[1740592876455,0.3,86489.0,86466.0,0.01228]
[1740592876657,0.01454085,86486.0,86466.0,0.01228]
[1740592876858,0.31454085,86484.0,86460.0,0.26032]
[1740592877058,0.31454085,86482.0,86460.0,0.26032]
[1740592877261,0.31454085,86480.0,86460.0,0.26032]
[1740592877460,0.31454085,86478.0,86460.0,0.26032]
[1740592877662,0.31454085,86476.0,86460.0,0.26032]
[1740592877866,0.31454085,86476.0,86468.0,0.00541124]
[1740592878453,0.02885885,86478.0,86469.0,0.00161925]
[1740592878657,0.02885885,86478.0,86468.0,0.00703003]
[1740592878862,0.005,86476.0,86469.0,0.0198]
[1740592879061,0.005,86476.0,86468.0,0.00541124]
[1740592879261,0.01454085,86477.0,86468.0,0.00541124]
[1740592879484,0.01149583,86482.0,86469.0,0.01385886]
[1740592879742,0.006,86478.0,86470.0,0.11385893]
[1740592880557,0.006,86478.0,86477.0,0.0198]
[1740592880983,0.01149583,86482.0,86479.0,0.0198]
[1740592881185,0.01149583,86482.0,86481.0,0.0148]
[1740592881794,0.01149583,86482.0,86481.0,0.64371839]
[1740592882139,0.01149583,86482.0,86481.0,0.7642]
[1740592882321,0.049,86532.0,86482.0,0.3]
[1740592882522,0.049,86532.0,86481.0,0.7642]
[1740592882523,0.049,86532.0,86497.0,0.09244013]
[1740592882728,0.0455,86549.0,86517.0,0.0148]
[1740592882934,0.0455,86549.0,86528.0,0.0148]
[1740592883105,0.0455,86549.0,86518.0,0.30161773]
[1740592883106,0.0481,86566.0,86534.0,0.0148]
[1740592883473,0.0481,86566.0,86526.0,0.09244013]
[1740592883474,0.00010434,86563.0,86544.0,0.0148]
[1740592883689,0.00010434,86563.0,86545.0,0.00161727]
[1740592883906,0.0049733,86551.0,86550.0,0.0148]
[1740592884040,0.0049733,86551.0,86550.0,0.01641706]
[1740592884463,0.0049733,86551.0,86550.0,0.00941706]
[1740592885135,0.0049733,86551.0,86544.0,0.0078]
[1740592885310,0.0059733,86551.0,86550.0,0.00761709]
[1740592885688,0.0049733,86551.0,86538.0,0.00161728]
[1740592885893,0.0049733,86551.0,86550.0,0.01524]
[1740592886274,0.0049733,86551.0,86550.0,0.003]
[1740592886473,0.0049733,86551.0,86550.0,0.01524]
[1740592886678,0.0049733,86551.0,86550.0,0.0112413]
[1740592887083,0.01454085,86563.0,86550.0,0.0112413]
[1740592887319,0.01454085,86563.0,86551.0,0.01385734]
[1740592887523,0.00526091,86577.0,86552.0,0.01224]
[1740592887748,0.01454085,86576.0,86552.0,0.01224]
[1740592888147,0.01454085,86576.0,86550.0,0.006]
[1740592888479,0.01554085,86551.0,86550.0,0.006]
[1740592888677,0.01454085,86550.0,86547.0,0.01224]
[1740592888891,0.01454085,86550.0,86538.0,0.01224]
[1740592889095,0.01454085,86548.0,86538.0,0.01224]
[1740592889262,0.64284085,86548.0,86538.0,0.01224]
[1740592889654,0.64284085,86548.0,86538.0,0.0123633]
[1740592890612,0.01454085,86546.0,86538.0,0.0123633]
[1740592890789,0.01454085,86543.0,86538.0,0.0001233]
[1740592891014,4.495781,86542.0,86538.0,0.0001233]
[1740592891209,0.31454085,86541.0,86538.0,0.0001233]
[1740592891420,0.31454085,86539.0,86538.0,0.0001233]
[1740592891627,4.81032185,86539.0,86538.0,0.0001233]
[1740592891833,0.0453,86535.0,86521.0,0.0122]
[1740592892036,0.02674085,86532.0,86503.0,0.0122]
[1740592892215,0.31454085,86530.0,86503.0,0.0122]
[1740592892420,0.31454085,86528.0,86503.0,0.0122]
[1740592892601,0.01454085,86525.0,86497.0,0.26028]
[1740592892962,0.31454085,86523.0,86497.0,0.26028]
[1740592893184,0.3,86521.0,86497.0,0.26028]
[1740592893387,0.3,86521.0,86498.0,0.0122]
[1740592893611,0.01454085,86520.0,86498.0,0.0122]
[1740592893820,0.35755638,86521.0,86499.0,0.00161835]
[1740592894064,0.05755638,86521.0,86499.0,0.0122]
[1740592894470,0.01454085,86520.0,86499.0,0.0122]
[1740592894879,0.01454085,86525.0,86499.0,0.0122]
[1740592895199,0.01454085,86523.0,86499.0,0.0122]
[1740592895385,0.31454085,86521.0,86499.0,0.0122]
[1740592895585,0.31454085,86519.0,86499.0,0.0122]
[1740592896147,0.31454085,86517.0,86499.0,0.0122]
[1740592897132,0.007,86525.0,86500.0,0.00161839]
[1740592897334,0.007,86525.0,86499.0,0.0122]
[1740592897584,0.34284085,86524.0,86499.0,0.0122]
[1740592897786,0.01454085,86522.0,86499.0,0.0122]
[1740592897996,0.01454085,86518.0,86499.0,0.0122]
[1740592898196,0.01454085,86516.0,86499.0,0.0122]
[1740592898342,0.00012321,86539.0,86500.0,0.00161846]
[1740592898583,4.495781,86523.0,86498.0,0.09244013]
[1740592898791,0.00012321,86539.0,86499.0,0.01381847]
[1740592898997,0.10123201,86519.0,86499.0,0.0122]
[1740592899203,0.01454085,86518.0,86497.0,0.26028]
[1740592899418,0.31454085,86516.0,86497.0,0.26028]
[1740592899637,0.01454085,86514.0,86499.0,0.000844]
[1740592899881,1.8466,86513.0,86499.0,0.000844]
[1740592900094,0.06214085,86510.0,86499.0,0.000844]
[1740592900309,0.31454085,86508.0,86499.0,0.000844]
[1740592900511,0.31454085,86506.0,86499.0,2.453e-05]
[1740592900722,0.31454085,86504.0,86499.0,2.453e-05]
[1740592900919,0.31454085,86502.0,86494.0,0.005]
[1740592901129,0.31454085,86500.0,86494.0,0.005]
[1740592901333,0.31454085,86498.0,86494.0,0.005]
[1740592901540,0.31454085,86496.0,86494.0,0.005]
[1740592901779,3.34564085,86495.0,86494.0,0.005]
[1740592902029,3.25364085,86495.0,86494.0,0.005]
[1740592902230,3.15404085,86495.0,86494.0,0.005]
[1740592902458,3.1882123,86495.0,86494.0,0.005]
[1740592902868,0.31454085,86494.0,86479.0,0.01224]
[1740592903074,4.81032185,86494.0,86479.0,0.01224]
[1740592903283,0.42002783,86495.0,86479.0,0.01224]